fUSD/lending_fUSD_20240527
["ID","MTS","AMOUNT","RATE_DAILY","PERIOD"]
[328016541,1716773510821,-570.65418415,0.00029589,4]
[328016542,1716773510835,-500.0,0.00029589,4]
[328016543,1716773510846,-1021.87,0.00029589,4]
[328016544,1716773510855,-500.0,0.00029589,4]
[328016545,1716773510866,-771.51,0.00029589,4]
[328016546,1716773510878,-500.0,0.00029589,4]
[328016547,1716773510887,-500.0,0.00029589,4]
[328016548,1716773510897,-500.0,0.00029589,4]
[328016549,1716773510911,-1127.03,0.00029589,4]
[328016550,1716773510921,-500.0,0.00029589,4]
[328016551,1716773510931,-500.0,0.00029589,4]
[328016552,1716773510940,-568.94,0.00029589,4]
[328016553,1716773510950,-792.94,0.00029589,4]
[328016554,1716773510959,-500.0,0.00029589,4]
[328016555,1716773510970,-1040.28,0.00029589,4]
[328016556,1716773510980,-500.0,0.00029589,4]
[328016557,1716773510992,-500.0,0.00029589,4]
[328016558,1716773511002,-565.33,0.00029589,4]
[328016559,1716773511011,-621.99,0.00029589,4]
[328016560,1716773511021,-248.11,0.00029589,4]
[328016561,1716773511030,-641.85,0.00029589,4]
[328016562,1716773511039,-500.0,0.00029589,4]
[328016563,1716773511049,-500.0,0.00029589,4]
[328016564,1716773511059,-590.75,0.00029589,4]
[328016565,1716773511069,-500.0,0.00029589,4]
[328016566,1716773511079,-500.0,0.00029589,4]
[328016567,1716773511088,-849.19,0.00029589,4]
[328016568,1716773511098,-500.0,0.00029589,4]
[328016569,1716773511108,-500.0,0.00029589,4]
[328016570,1716773511117,-889.12,0.00029589,4]
[328016571,1716773511127,-530.16,0.00029589,4]
[328016572,1716773511137,-536.89,0.00029589,4]
[328016573,1716773511146,-500.0,0.00029589,4]
[328016574,1716773511156,-1259.29,0.00029589,4]
[328016575,1716773511166,-500.0,0.00029589,4]
[328016576,1716773511175,-500.0,0.00029589,4]
[328016577,1716773511184,-500.0,0.00029589,4]
[328016578,1716773511194,-500.0,0.00029589,4]
[328016579,1716773511203,-500.0,0.00029589,4]
[328016580,1716773511212,-500.0,0.00029589,4]
[328016581,1716773511222,-776.42,0.00029589,4]
[328016582,1716773511231,-568.42,0.00029589,4]
[328016583,1716773511241,-1677.95,0.00029589,4]
[328016584,1716773511252,-646.9,0.00029589,4]
[328016585,1716773511261,-660.3,0.00029589,4]
[328016586,1716773511271,-537.3,0.00029589,4]
[328016587,1716773511280,-500.0,0.00029589,4]
[328016588,1716773511289,-500.0,0.00029589,4]
[328016589,1716773511300,-2614.52,0.00029589,4]
[328016590,1716773511310,-579.16,0.00029589,4]
[328016591,1716773511320,-1322.14,0.00029589,4]
[328016592,1716773511330,-969.5,0.00029589,4]
[328016593,1716773511339,-500.0,0.00029589,4]
[328016594,1716773511350,-609.69,0.00029589,4]
[328016595,1716773511361,-500.0,0.00029589,4]
[328016596,1716773511371,-500.0,0.00029589,4]
[328016597,1716773511381,-506.32,0.00029589,4]
[328016598,1716773511390,-500.0,0.00029589,4]
[328016599,1716773511400,-500.0,0.00029589,4]
[328016600,1716773511410,-1140.34,0.00029589,4]
[328016601,1716773511419,-1339.71,0.00029589,4]
[328016602,1716773511430,-673.21,0.00029589,4]
[328016603,1716773511440,-859.67,0.00029589,4]
[328016604,1716773511449,-7686.08,0.00029589,4]
[328016605,1716773511459,-1172.21,0.00029589,4]
[328016606,1716773511469,-500.0,0.00029589,4]
[328016607,1716773511479,-1287.8,0.00029589,4]
[328016608,1716773511488,-500.0,0.00029589,4]
[328016609,1716773511497,-500.0,0.00029589,4]
[328016610,1716773511507,-484.77687017,0.00029589,4]
[328016611,1716773511516,-900.49,0.00029589,4]
[328016612,1716773511525,-1037.45,0.00029589,4]
[328016613,1716773511535,-507.12,0.00029589,4]
[328016614,1716773511544,-735.66,0.00029589,4]
[328016615,1716773511555,-500.0,0.00029589,4]
[328016616,1716773511566,-500.0,0.00029589,4]
[328016617,1716773511576,-2771.58,0.00029589,4]
[328016618,1716773511585,-500.0,0.00029589,4]
[328016619,1716773511594,-500.0,0.00029589,4]
[328016620,1716773511604,-500.0,0.00029589,4]
[328016621,1716773511614,-3172.21,0.00029589,4]
[328016622,1716773511624,-500.0,0.00029589,4]
[328016623,1716773511634,-1674.57,0.00029589,4]
[328016624,1716773511643,-500.0,0.00029589,4]
[328016625,1716773511652,-500.0,0.00029589,4]
[328016626,1716773511662,-2746.18,0.00029589,4]
[328016627,1716773511671,-500.0,0.00029589,4]
[328016628,1716773511681,-527.2,0.00029589,4]
[328016629,1716773511691,-500.0,0.00029589,4]
[328016630,1716773511702,-6205.95,0.00029589,4]
[328016631,1716773511712,-500.0,0.00029589,4]
[328016632,1716773511721,-500.0,0.00029589,4]
[328016633,1716773511732,-892.56,0.00029589,4]
[328016634,1716773511744,-706.36,0.00029589,4]
[328016635,1716773511754,-500.0,0.00029589,4]
[328016636,1716773511765,-1206.85,0.00029589,4]
[328016637,1716773511775,-2601.64,0.00029589,4]
[328016638,1716773511784,-627.83,0.00029589,4]
[328016639,1716773511793,-500.0,0.00029589,4]
[328016640,1716773511803,-500.0,0.00029589,4]
[328016641,1716773511812,-500.0,0.00029589,4]
[328016642,1716773511822,-906.32,0.00029589,4]
[328016643,1716773511834,-500.0,0.00029589,4]
[328016644,1716773511844,-1301.17,0.00029589,4]
[328016645,1716773511854,-1348.74,0.00029589,4]
[328016646,1716773511863,-500.0,0.00029589,4]
[328016647,1716773511872,-1356.31,0.00029589,4]
[328016648,1716773511883,-690.34,0.00029589,4]
[328016649,1716773511892,-500.0,0.00029589,4]
[328016650,1716773511902,-500.0,0.00029589,4]
[328016651,1716773511913,-500.0,0.00029589,4]
[328016652,1716773511923,-500.0,0.00029589,4]
[328016653,1716773511933,-500.0,0.00029589,4]
[328016654,1716773511942,-500.0,0.00029589,4]
[328016655,1716773511951,-2143.83,0.00029589,4]
[328016656,1716773511960,-2383.33,0.00029589,4]
[328016657,1716773511970,-500.0,0.00029589,4]
[328016658,1716773511979,-500.0,0.00029589,4]
[328016659,1716773511989,-500.0,0.00029589,4]
[328016660,1716773511998,-500.0,0.00029589,4]
[328016661,1716773512007,-500.0,0.00029589,4]
[328016662,1716773512016,-1576.4,0.00029589,4]
[328016663,1716773512026,-1713.46,0.00029589,4]
[328016664,1716773512036,-786.1,0.00029589,4]
[328016665,1716773512045,-1532.05,0.00029589,4]
[328016666,1716773512055,-3324.33,0.00029589,4]
[328016667,1716773512064,-1197.25,0.00029589,4]
[328016668,1716773512074,-500.0,0.00029589,4]
[328016669,1716773512083,-908.76,0.00029589,4]
[328016670,1716773512093,-606.23,0.00029589,4]
[328016671,1716773512102,-500.0,0.00029589,4]
[328016672,1716773512111,-500.0,0.00029589,4]
[328016673,1716773512121,-500.0,0.00029589,4]
[328016674,1716773512130,-881.49,0.00029589,4]
[328016675,1716773512140,-500.0,0.00029589,4]
[328016676,1716773512150,-760.48,0.00029589,4]
[328016677,1716773512160,-500.0,0.00029589,4]
[328016678,1716773512170,-1016.57,0.00029589,4]
[328016679,1716773512179,-10252.41,0.00029589,4]
[328016680,1716773512189,-601.05,0.00029589,4]
[328016681,1716773512198,-984.73,0.00029589,4]
[328016682,1716773512208,-879.73,0.00029589,4]
[328016683,1716773512218,-500.0,0.00029589,4]
[328016684,1716773512227,-1296.31,0.00029589,4]
[328016685,1716773512237,-913.5,0.00029589,4]
[328016686,1716773512247,-500.0,0.00029589,4]
[328016687,1716773512256,-627.73,0.00029589,4]
[328016688,1716773512267,-500.0,0.00029589,4]
[328016689,1716773512276,-500.0,0.00029589,4]
[328016690,1716773512286,-12959.85,0.00029589,4]
[328016691,1716773512295,-1152.84,0.00029589,4]
[328016692,1716773512304,-500.0,0.00029589,4]
[328016693,1716773512314,-1257.91,0.00029589,4]
[328016694,1716773512324,-500.0,0.00029589,4]
[328016695,1716773512333,-500.0,0.00029589,4]
[328016696,1716773512342,-1837.75,0.00029589,4]
[328016697,1716773512352,-2024.08,0.00029589,4]
[328016698,1716773512362,-500.0,0.00029589,4]
[328016699,1716773512371,-500.0,0.00029589,4]
[328016700,1716773512381,-500.0,0.00029589,4]
[328016701,1716773512391,-1234.35,0.00029589,4]
[328016702,1716773512400,-602.61,0.00029589,4]
[328016703,1716773512410,-1687.26,0.00029589,4]
[328016704,1716773512421,-500.0,0.00029589,4]
[328016705,1716773512431,-500.0,0.00029589,4]
[328016706,1716773512440,-500.0,0.00029589,4]
[328016707,1716773512450,-500.0,0.00029589,4]
[328016708,1716773512459,-500.0,0.00029589,4]
[328016709,1716773512469,-500.0,0.00029589,4]
[328016710,1716773512478,-869.6,0.00029589,4]
[328016711,1716773512487,-572.54,0.00029589,4]
[328016712,1716773512496,-500.0,0.00029589,4]
[328016713,1716773512505,-1160.09,0.00029589,4]
[328016714,1716773512514,-915.48,0.00029589,4]
[328016715,1716773512522,-894.59,0.00029589,4]
[328016716,1716773512531,-500.0,0.00029589,4]
[328016717,1716773512540,-1359.95,0.00029589,4]
[328016718,1716773512549,-500.0,0.00029589,4]
[328016719,1716773512558,-777.55,0.00029589,4]
[328016720,1716773512567,-500.0,0.00029589,4]
[328016721,1716773512577,-955.96,0.00029589,4]
[328016722,1716773512586,-500.0,0.00029589,4]
[328016723,1716773512595,-590.73,0.00029589,4]
[328016724,1716773512604,-500.0,0.00029589,4]
[328016725,1716773512613,-500.0,0.00029589,4]
[328016726,1716773512622,-824.44,0.00029589,4]
[328016727,1716773512633,-1899.17,0.00029589,4]
[328016728,1716773512642,-500.0,0.00029589,4]
[328016729,1716773512651,-709.3,0.00029589,4]
[328016730,1716773512660,-500.0,0.00029589,4]
[328016731,1716773512669,-726.34,0.00029589,4]
[328016732,1716773512679,-1522.47,0.00029589,4]
[328016733,1716773512688,-500.0,0.00029589,4]
[328016734,1716773512697,-1111.07,0.00029589,4]
[328016735,1716773512705,-6862.17,0.00029589,4]
[328016736,1716773512714,-500.0,0.00029589,4]
[328016737,1716773512723,-1636.35,0.00029589,4]
[328016738,1716773512734,-500.0,0.00029589,4]
[328016739,1716773512743,-977.11,0.00029589,4]
[328016740,1716773512752,-1153.21,0.00029589,4]
[328016741,1716773512761,-879.18,0.00029589,4]
[328016742,1716773512772,-688.44,0.00029589,4]
[328016743,1716773512781,-706.27,0.00029589,4]
[328016744,1716773512790,-500.0,0.00029589,4]
[328016745,1716773512799,-500.0,0.00029589,4]
[328016746,1716773512807,-1139.88,0.00029589,4]
[328016747,1716773512817,-500.0,0.00029589,4]
[328016748,1716773512826,-500.0,0.00029589,4]
[328016749,1716773512838,-1445.7,0.00029589,4]
[328016750,1716773512847,-500.0,0.00029589,4]
[328016751,1716773512857,-818.95,0.00029589,4]
[328016752,1716773512867,-500.0,0.00029589,4]
[328016753,1716773512877,-500.0,0.00029589,4]
[328016754,1716773512888,-2130.92,0.00029589,4]
[328016755,1716773512898,-3583.63,0.00029589,4]
[328016756,1716773512909,-5398.85,0.00029589,4]
[328016757,1716773512918,-874.92,0.00029589,4]
[328016758,1716773512928,-1049.53,0.00029589,4]
[328016759,1716773512937,-6155.22,0.00029589,4]
[328016760,1716773512946,-2307.64,0.00029589,4]
[328016761,1716773512955,-500.0,0.00029589,4]
[328016762,1716773512965,-500.0,0.00029589,4]
[328016763,1716773512974,-647.85,0.00029589,4]
[328016764,1716773512983,-500.0,0.00029589,4]
[328016765,1716773512992,-500.0,0.00029589,4]
[328016766,1716773513002,-1590.14,0.00029589,4]
[328016767,1716773513011,-1987.82,0.00029589,4]
[328016768,1716773513085,-4196.44,0.00029589,4]
[328016769,1716773513095,-500.0,0.00029589,4]
[328016770,1716773513104,-1672.39,0.00029589,4]
[328016771,1716773513113,-1529.19,0.00029589,4]
[328016772,1716773513123,-500.0,0.00029589,4]
[328016773,1716773513133,-1357.3,0.00029589,4]
[328016774,1716773513142,-500.0,0.00029589,4]
[328016775,1716773513152,-3193.96,0.00029589,4]
[328016776,1716773513163,-2967.77,0.00029589,4]
[328016777,1716773513172,-500.0,0.00029589,4]
[328016778,1716773513181,-500.0,0.00029589,4]
[328016779,1716773513190,-500.0,0.00029589,4]
[328016780,1716773513200,-1331.17,0.00029589,4]
[328016781,1716773513209,-953.21,0.00029589,4]
[328016782,1716773513218,-683.81,0.00029589,4]
[328016783,1716773513228,-621.07,0.00029589,4]
[328016784,1716773513237,-3518.53,0.00029589,4]
[328016785,1716773513247,-707.14,0.00029589,4]
[328016786,1716773513257,-500.0,0.00029589,4]
[328016787,1716773513266,-1400.41,0.00029589,4]
[328016788,1716773513275,-500.0,0.00029589,4]
[328016789,1716773513285,-500.0,0.00029589,4]
[328016790,1716773513294,-500.0,0.00029589,4]
[328016791,1716773513303,-1255.06,0.00029589,4]
[328016792,1716773513313,-500.0,0.00029589,4]
[328016793,1716773513321,-500.0,0.00029589,4]
[328016794,1716773513330,-500.0,0.00029589,4]
[328016795,1716773513340,-2187.31,0.00029589,4]
[328016796,1716773513350,-500.0,0.00029589,4]
[328016797,1716773513359,-1098.66,0.00029589,4]
[328016798,1716773513369,-2106.55,0.00029589,4]
[328016799,1716773513384,-919.68,0.00029589,4]
[328016800,1716773513393,-2336.3,0.00029589,4]
[328016801,1716773513403,-500.0,0.00029589,4]
[328016802,1716773513412,-1415.86,0.00029589,4]
[328016803,1716773513421,-1637.74,0.00029589,4]
[328016804,1716773513430,-609.84,0.00029589,4]
[328016805,1716773513439,-912.06,0.00029589,4]
[328016806,1716773513449,-500.0,0.00029589,4]
[328016807,1716773513458,-1275.52,0.00029589,4]
[328016808,1716773513467,-500.0,0.00029589,4]
[328016809,1716773513476,-1558.22,0.00029589,4]
[328016810,1716773513485,-500.0,0.00029589,4]
[328016811,1716773513494,-500.0,0.00029589,4]
[328016812,1716773513503,-500.0,0.00029589,4]
[328016813,1716773513512,-500.0,0.00029589,4]
[328016814,1716773513521,-3246.02,0.00029589,4]
[328016815,1716773513530,-1094.9,0.00029589,4]
[328016816,1716773513539,-513.47811894,0.00029589,4]
[328016817,1716773513548,-500.0,0.00029589,4]
[328016818,1716773513558,-537.01,0.00029589,4]
[328016819,1716773513567,-621.2533499,0.00029589,4]
[328016820,1716773513576,-500.0,0.00029589,4]
[328016821,1716773513586,-999.12,0.00029589,4]
[328016822,1716773513595,-500.0,0.00029589,4]
[328016823,1716773513605,-593.71,0.00029589,4]
[328016824,1716773513614,-500.0,0.00029589,4]
[328016825,1716773513624,-510.96,0.00029589,4]
[328016826,1716773513633,-1146.79,0.00029589,4]
[328016827,1716773513642,-500.0,0.00029589,4]
[328016828,1716773513651,-1156.39,0.00029589,4]
[328016829,1716773513661,-500.0,0.00029589,4]
[328016830,1716773513670,-500.0,0.00029589,4]
[328016831,1716773513679,-1494.94,0.00029589,4]
[328016832,1716773513688,-3014.19,0.00029589,4]
[328016833,1716773513697,-500.0,0.00029589,4]
[328016834,1716773513706,-766.93,0.00029589,4]
[328016835,1716773513715,-500.0,0.00029589,4]
[328016836,1716773513725,-500.0,0.00029589,4]
[328016837,1716773513734,-500.0,0.00029589,4]
[328016838,1716773513743,-1271.17,0.00029589,4]
[328016839,1716773513752,-500.0,0.00029589,4]
[328016840,1716773513761,-500.0,0.00029589,4]
[328016841,1716773513770,-500.0,0.00029589,4]
[328016842,1716773513779,-7504.54,0.00029589,4]
[328016843,1716773513789,-500.0,0.00029589,4]
[328016844,1716773513798,-500.0,0.00029589,4]
[328016845,1716773513807,-500.0,0.00029589,4]
[328016846,1716773513816,-3268.60593297,0.00029633,2]
[328016847,1716773513825,-152.0,0.00029783,3]
[328016848,1716773513839,-1500.0,0.00029858,5]
[328016849,1716773513848,-1500.0,0.00029858,6]
[328016850,1716773513859,-1500.0,0.00029858,7]
[328016851,1716773513868,-1500.0,0.00029858,8]
[328016852,1716773513879,-672.84,0.00029858,9]
[328016853,1716773513890,-155.0,0.00029861,2]
[328016854,1716773513899,-500.0,0.00029863,4]
[328016855,1716773513910,-500.0,0.00029863,4]
[328016856,1716773513919,-695.36,0.00029863,4]
[328016857,1716773513928,-500.0,0.00029863,4]
[328016858,1716773513937,-500.0,0.00029863,4]
[328016859,1716773513946,-500.0,0.00029863,4]
[328016860,1716773513956,-500.0,0.00029863,4]
[328016861,1716773513965,-500.0,0.00029863,4]
[328016862,1716773513973,-500.0,0.00029863,4]
[328016863,1716773513983,-736.3,0.00029863,4]
[328016864,1716773513992,-500.0,0.00029863,4]
[328016865,1716773514001,-500.0,0.00029863,4]
[328016866,1716773514011,-500.0,0.00029863,4]
[328016867,1716773514020,-500.0,0.00029863,4]
[328016868,1716773514030,-500.0,0.00029863,4]
[328016869,1716773514039,-181.22530883,0.00029863,4]
[328016870,1716773514049,-500.0,0.00029863,4]
[328016871,1716773514058,-500.0,0.00029863,4]
[328016872,1716773514068,-500.0,0.00029863,4]
[328016873,1716773514077,-500.0,0.00029863,4]
[328016874,1716773514087,-500.0,0.00029863,4]
[328016875,1716773514097,-500.0,0.00029863,4]
[328016876,1716773514106,-500.0,0.00029863,4]
[328016877,1716773514115,-500.0,0.00029863,4]
[328016878,1716773514125,-500.0,0.00029863,4]
[328016879,1716773514136,-500.0,0.00029863,4]
[328016880,1716773514146,-500.0,0.00029863,4]
[328016881,1716773514155,-500.0,0.00029863,4]
[328016882,1716773514165,-763.53,0.00029863,4]
[328016883,1716773514175,-500.0,0.00029863,4]
[328016884,1716773514185,-500.0,0.00029863,4]
[328016885,1716773514194,-500.0,0.00029863,4]
[328016886,1716773514205,-500.0,0.00029863,4]
[328016887,1716773514214,-500.0,0.00029863,4]
[328016888,1716773514223,-500.0,0.00029863,4]
[328016889,1716773514233,-500.0,0.00029863,4]
[328016890,1716773514242,-500.0,0.00029863,4]
[328016891,1716773514251,-500.0,0.00029863,4]
[328016892,1716773514261,-500.0,0.00029863,4]
[328016893,1716773514270,-602.16,0.00029863,4]
[328016894,1716773514279,-500.0,0.00029863,4]
[328016895,1716773514288,-500.0,0.00029863,4]
[328016896,1716773514298,-500.0,0.00029863,4]
[328016897,1716773514307,-500.0,0.00029863,4]
[328016898,1716773514317,-500.0,0.00029863,4]
[328016899,1716773514326,-500.0,0.00029863,4]
[328016900,1716773514335,-500.0,0.00029863,4]
[328016901,1716773514345,-500.0,0.00029863,4]
[328016902,1716773514355,-500.0,0.00029863,4]
[328016903,1716773514364,-150.0,0.00029863,4]
[328016904,1716773514374,-500.0,0.00029863,4]
[328016905,1716773514384,-579.32,0.00029863,4]
[328016906,1716773514393,-500.0,0.00029863,4]
[328016907,1716773514402,-500.0,0.00029863,4]
[328016908,1716773514412,-500.0,0.00029863,4]
[328016909,1716773514421,-500.0,0.00029863,4]
[328016910,1716773514431,-500.0,0.00029863,4]
[328016911,1716773514440,-500.0,0.00029863,4]
[328016912,1716773514450,-500.0,0.00029863,4]
[328016913,1716773514460,-500.0,0.00029863,4]
[328016914,1716773514469,-509.3,0.00029863,4]
[328016915,1716773514479,-500.0,0.00029863,4]
[328016916,1716773514489,-500.0,0.00029863,4]
[328016917,1716773514499,-500.0,0.00029863,4]
[328016918,1716773514508,-500.0,0.00029863,4]
[328016919,1716773514518,-500.0,0.00029863,4]
[328016920,1716773514527,-500.0,0.00029863,4]
[328016921,1716773514536,-500.0,0.00029863,4]
[328016922,1716773514547,-500.0,0.00029863,4]
[328016923,1716773514556,-500.0,0.00029863,4]
[328016924,1716773514566,-500.0,0.00029863,4]
[328016925,1716773514575,-618.09,0.00029863,4]
[328016926,1716773514584,-500.0,0.00029863,4]
[328016927,1716773514594,-500.0,0.00029863,4]
[328016928,1716773514604,-500.0,0.00029863,4]
[328016929,1716773514613,-500.0,0.00029863,4]
[328016930,1716773514622,-500.0,0.00029863,4]
[328016931,1716773514633,-500.0,0.00029863,4]
[328016932,1716773514642,-500.0,0.00029863,4]
[328016933,1716773514651,-500.0,0.00029863,4]
[328016934,1716773514661,-500.0,0.00029863,4]
[328016935,1716773514672,-500.0,0.00029863,4]
[328016936,1716773514681,-500.0,0.00029863,4]
[328016937,1716773514690,-500.0,0.00029863,4]
[328016938,1716773514700,-500.0,0.00029863,4]
[328016939,1716773514709,-500.0,0.00029863,4]
[328016940,1716773514718,-500.0,0.00029863,4]
[328016941,1716773514727,-500.0,0.00029863,4]
[328016942,1716773514736,-500.0,0.00029863,4]
[328016943,1716773514746,-500.0,0.00029863,4]
[328016944,1716773514755,-500.0,0.00029863,4]
[328016945,1716773514765,-500.0,0.00029863,4]
[328016946,1716773514774,-500.0,0.00029863,4]
[328016947,1716773514783,-500.0,0.00029863,4]
[328016948,1716773514792,-525.03,0.00029863,4]
[328016949,1716773514802,-500.0,0.00029863,4]
[328016950,1716773514812,-500.0,0.00029863,4]
[328016951,1716773514822,-500.0,0.00029863,4]
[328016952,1716773514835,-500.0,0.00029863,4]
[328016953,1716773514844,-500.0,0.00029863,4]
[328016954,1716773514854,-581.48912227,0.00029863,4]
[328016955,1716773514863,-539.9,0.00029863,4]
[328016956,1716773514874,-657.09,0.00029863,4]
[328016957,1716773514884,-611.76,0.00029863,4]
[328016958,1716773514894,-500.0,0.00029863,4]
[328016959,1716773514903,-500.0,0.00029863,4]
[328016960,1716773514914,-500.0,0.00029863,4]
[328016961,1716773514924,-500.0,0.00029863,4]
[328016962,1716773514934,-500.0,0.00029863,4]
[328016963,1716773514944,-500.0,0.00029863,4]
[328016964,1716773514954,-500.0,0.00029863,4]
[328016965,1716773514963,-750.33,0.00029863,4]
[328016966,1716773514973,-500.0,0.00029863,4]
[328016967,1716773514983,-500.0,0.00029863,4]
[328016968,1716773514993,-500.0,0.00029863,4]
[328016969,1716773515003,-500.0,0.00029863,4]
[328016970,1716773515013,-743.01,0.00029863,4]
[328016971,1716773515023,-500.0,0.00029863,4]
[328016972,1716773515032,-500.0,0.00029863,4]
[328016973,1716773515041,-500.0,0.00029863,4]
[328016974,1716773515052,-500.0,0.00029863,4]
[328016975,1716773515062,-500.0,0.00029863,4]
[328016976,1716773515071,-613.12,0.00029863,4]
[328016977,1716773515081,-500.0,0.00029863,4]
[328016978,1716773515090,-171.76,0.00029863,4]
[328016979,1716773515100,-500.0,0.00029863,4]
[328016980,1716773515110,-500.0,0.00029863,4]
[328016981,1716773515120,-500.0,0.00029863,4]
[328016982,1716773515130,-500.0,0.00029863,4]
[328016983,1716773515140,-168.16637031,0.00029863,4]
[328016984,1716773515150,-500.0,0.00029863,4]
[328016985,1716773515160,-500.0,0.00029863,4]
[328016986,1716773515170,-500.0,0.00029863,4]
[328016987,1716773515179,-674.79,0.00029863,4]
[328016988,1716773515189,-500.0,0.00029863,4]
[328016989,1716773515198,-500.0,0.00029863,4]
[328016990,1716773515208,-500.0,0.00029863,4]
[328016991,1716773515218,-500.0,0.00029863,4]
[328016992,1716773515227,-500.0,0.00029863,4]
[328016993,1716773515237,-637.71,0.00029863,4]
[328016994,1716773515247,-500.0,0.00029863,4]
[328016995,1716773515257,-500.0,0.00029863,4]
[328016996,1716773515267,-500.0,0.00029863,4]
[328016997,1716773515276,-610.35,0.00029863,4]
[328016998,1716773515286,-565.63,0.00029863,4]
[328016999,1716773515296,-500.0,0.00029863,4]
[328017000,1716773515305,-500.0,0.00029863,4]
[328017001,1716773515315,-500.0,0.00029863,4]
[328017002,1716773515325,-500.0,0.00029863,4]
[328017003,1716773515334,-1112.41,0.00029863,4]
[328017004,1716773515344,-500.0,0.00029863,4]
[328017005,1716773515353,-500.0,0.00029863,4]
[328017006,1716773515363,-518.47,0.00029863,4]
[328017007,1716773515373,-500.0,0.00029863,4]
[328017008,1716773515383,-500.0,0.00029863,4]
[328017009,1716773515393,-820.24,0.00029863,4]
[328017010,1716773515403,-500.0,0.00029863,4]
[328017011,1716773515413,-588.92898923,0.00029863,4]
[328017012,1716773515423,-500.0,0.00029863,4]
[328017013,1716773515433,-500.0,0.00029863,4]
[328017014,1716773515444,-593.76708922,0.00029863,4]
[328017015,1716773515454,-500.0,0.00029863,4]
[328017016,1716773515465,-813.92,0.00029863,4]
[328017017,1716773515475,-500.0,0.00029863,4]
[328017018,1716773515484,-500.0,0.00029863,4]
[328017019,1716773515494,-500.0,0.00029863,4]
[328017020,1716773515504,-500.0,0.00029863,4]
[328017021,1716773515514,-500.0,0.00029863,4]
[328017022,1716773515524,-500.0,0.00029863,4]
[328017023,1716773515534,-188.13324871,0.00029863,4]
[328017024,1716773515544,-500.0,0.00029863,4]
[328017025,1716773515554,-500.0,0.00029863,4]
[328017026,1716773515564,-1037.2,0.00029863,4]
[328017027,1716773515573,-500.0,0.00029863,4]
[328017028,1716773515583,-1002.02,0.00029863,4]
[328017029,1716773515593,-1135.33,0.00029863,4]
[328017030,1716773515603,-500.0,0.00029863,4]
[328017031,1716773515614,-696.41,0.00029863,4]
[328017032,1716773515623,-500.0,0.00029863,4]
[328017033,1716773515634,-526.63,0.00029863,4]
[328017034,1716773515644,-500.0,0.00029863,4]
[328017035,1716773515655,-659.81,0.00029863,4]
[328017036,1716773515665,-566.26,0.00029863,4]
[328017037,1716773515675,-724.95,0.00029863,4]
[328017038,1716773515685,-715.24,0.00029863,4]
[328017039,1716773515695,-500.0,0.00029863,4]
[328017040,1716773515704,-500.0,0.00029863,4]